[Event "*** Titled Tuesday Blitz"]
[Site "Chess.com"]
[Date "2020.10.27"]
[Round "3"]
[White "Morshynska"]
[Black "shnitez"]
[Result "0-1"]
[WhiteElo "2204"]
[BlackElo "2427"]
[TimeControl "180+1"]
[EndTime "10:28:25 PDT"]
[Termination "shnitez won by resignation"]

1. Nf3 {[%clk 0:03:00.9]} 1... Nf6 {[%clk 0:02:58.6]} 2. g3 {[%clk 0:03:01.3]}
2... b6 {[%clk 0:02:58]} 3. Bg2 {[%clk 0:03:01.4]} 3... Bb7 {[%clk 0:02:58.6]}
4. O-O {[%clk 0:03:02]} 4... e6 {[%clk 0:02:58.6]} 5. d4 {[%clk 0:03:02.4]} 5...
Be7 {[%clk 0:02:58.3]} 6. c4 {[%clk 0:03:01.9]} 6... O-O {[%clk 0:02:58.5]} 7.
Re1 {[%clk 0:02:57]} 7... d5 {[%clk 0:02:58.3]} 8. cxd5 {[%clk 0:02:53.5]} 8...
exd5 {[%clk 0:02:59.2]} 9. Nc3 {[%clk 0:02:51.4]} 9... Nbd7 {[%clk 0:02:58.2]}
10. Bf4 {[%clk 0:02:51]} 10... c5 {[%clk 0:02:58.4]} 11. Rc1 {[%clk 0:02:42.9]}
11... Ne4 {[%clk 0:02:56.9]} 12. Nd2 {[%clk 0:01:57.4]} 12... Nxc3 {[%clk
0:02:21.5]} 13. bxc3 {[%clk 0:01:52.4]} 13... Re8 {[%clk 0:01:35.2]} 14. e4
{[%clk 0:01:33.2]} 14... cxd4 {[%clk 0:01:22.6]} 15. cxd4 {[%clk 0:01:21.7]}
15... Bb4 {[%clk 0:00:47.9]} 16. Qa4 {[%clk 0:00:35.8]} 16... Bxd2 {[%clk
0:00:42.5]} 17. Bxd2 {[%clk 0:00:36.7]} 17... dxe4 {[%clk 0:00:42.1]} 18. Rc7
{[%clk 0:00:33.5]} 18... Qxc7 {[%clk 0:00:40.4]} 19. Bh3 {[%clk 0:00:28.6]}
19... Nf6 {[%clk 0:00:39]} 20. a3 {[%clk 0:00:26]} 20... Qc6 {[%clk 0:00:33.1]}
21. Qxc6 {[%clk 0:00:19.5]} 21... Bxc6 {[%clk 0:00:34]} 22. Bf4 {[%clk
0:00:20.1]} 22... Nd5 {[%clk 0:00:27.9]} 23. Bd6 {[%clk 0:00:19.6]} 23... Rad8
{[%clk 0:00:22.7]} 24. Be5 {[%clk 0:00:18.9]} 24... f6 {[%clk 0:00:22.2]} 25.
Bf4 {[%clk 0:00:18.7]} 25... Nxf4 {[%clk 0:00:22.3]} 26. gxf4 {[%clk 0:00:19.6]}
26... Rxd4 {[%clk 0:00:22.5]} 27. f5 {[%clk 0:00:19.3]} 27... Rd3 {[%clk
0:00:21.6]} 28. Bg2 {[%clk 0:00:18.8]} 28... Rxa3 {[%clk 0:00:21.7]} 29. h4
{[%clk 0:00:18.7]} 29... Ra5 {[%clk 0:00:21.5]} 30. Rc1 {[%clk 0:00:18.1]} 30...
Rc5 {[%clk 0:00:21]} 31. Rd1 {[%clk 0:00:18]} 31... Rxf5 {[%clk 0:00:20.5]} 32.
Rd6 {[%clk 0:00:18]} 32... Rc5 {[%clk 0:00:20.2]} 33. Bh3 {[%clk 0:00:17.2]}
33... a5 {[%clk 0:00:20]} 34. Be6+ {[%clk 0:00:17]} 34... Kf8 {[%clk 0:00:19.9]}
35. h5 {[%clk 0:00:17.1]} 35... a4 {[%clk 0:00:19.9]} 36. Bg4 {[%clk 0:00:16.3]}
36... a3 {[%clk 0:00:19.5]} 37. Rd2 {[%clk 0:00:15.1]} 37... Bd5 {[%clk
0:00:18.9]} 38. Kh2 {[%clk 0:00:14.2]} 38... a2 {[%clk 0:00:19]} 39. Rd1 {[%clk
0:00:14.2]} 39... Ra8 {[%clk 0:00:19.2]} 40. Ra1 {[%clk 0:00:14.7]} 40... Bf7
{[%clk 0:00:17.3]} 41. h6 {[%clk 0:00:14.6]} 41... gxh6 {[%clk 0:00:17.1]} 42.
Be2 {[%clk 0:00:14.9]} 42... b5 {[%clk 0:00:16.7]} 43. Kg3 {[%clk 0:00:15.3]}
43... b4 {[%clk 0:00:17.1]} 44. Bd1 {[%clk 0:00:15.4]} 44... b3 {[%clk
0:00:16.8]} 45. Bxb3 {[%clk 0:00:14.3]} 45... Bxb3 {[%clk 0:00:17.7]} 46. Kf4
{[%clk 0:00:15]} 46... f5 {[%clk 0:00:17.3]} 47. f3 {[%clk 0:00:14.9]} 47...
exf3 {[%clk 0:00:16.2]} 48. Kxf3 {[%clk 0:00:15.8]} 48... Rc2 {[%clk 0:00:14.6]}
49. Kf4 {[%clk 0:00:15.6]} 49... Rb2 {[%clk 0:00:15.2]} 50. Rg1 {[%clk
0:00:14.2]} 50... a1=Q {[%clk 0:00:14.5]} 0-1

[Event "*** Titled Tuesday Blitz"]
[Site "Chess.com"]
[Date "2020.10.27"]
[Round "3"]
[White "Abdimalik_Abdisalimov"]
[Black "Bigfish1995"]
[Result "1/2-1/2"]
[WhiteElo "2755"]
[BlackElo "3016"]
[TimeControl "180+1"]
[EndTime "10:28:28 PDT"]
[Termination "Game drawn by repetition"]

1. d4 {[%clk 0:03:00.7]} 1... d5 {[%clk 0:02:57.9]} 2. c4 {[%clk 0:03:01.2]}
2... e6 {[%clk 0:02:57.8]} 3. Nc3 {[%clk 0:03:01.4]} 3... h6 {[%clk 0:02:57.5]}
4. cxd5 {[%clk 0:03:00.6]} 4... exd5 {[%clk 0:02:57.3]} 5. Nf3 {[%clk
0:03:01.1]} 5... c6 {[%clk 0:02:53.6]} 6. Qb3 {[%clk 0:03:02]} 6... Qe7 {[%clk
0:02:06.8]} 7. g3 {[%clk 0:02:43.6]} 7... Nf6 {[%clk 0:02:04.1]} 8. Bg2 {[%clk
0:02:43.7]} 8... Bf5 {[%clk 0:01:56.3]} 9. O-O {[%clk 0:02:39.4]} 9... Qb4
{[%clk 0:01:56.2]} 10. Qd1 {[%clk 0:02:38.4]} 10... Nbd7 {[%clk 0:01:55.2]} 11.
a3 {[%clk 0:02:23.6]} 11... Qb6 {[%clk 0:01:54.8]} 12. Na4 {[%clk 0:02:23.9]}
12... Qc7 {[%clk 0:01:52.3]} 13. Bf4 {[%clk 0:02:17.1]} 13... Bd6 {[%clk
0:01:51.7]} 14. e3 {[%clk 0:02:17]} 14... O-O {[%clk 0:01:50.3]} 15. Rc1 {[%clk
0:02:14.7]} 15... a5 {[%clk 0:01:44]} 16. Qb3 {[%clk 0:02:09.1]} 16... Bxf4
{[%clk 0:01:34.1]} 17. gxf4 {[%clk 0:02:10]} 17... Rfe8 {[%clk 0:01:27.3]} 18.
Ne5 {[%clk 0:02:07.7]} 18... Rad8 {[%clk 0:01:17.5]} 19. Nc3 {[%clk 0:01:35.6]}
19... Qb8 {[%clk 0:01:11.3]} 20. Qa4 {[%clk 0:01:32]} 20... Qa8 {[%clk
0:01:10.1]} 21. Kh1 {[%clk 0:01:17]} 21... Nf8 {[%clk 0:00:56.8]} 22. b4 {[%clk
0:00:58.8]} 22... axb4 {[%clk 0:00:56.1]} 23. axb4 {[%clk 0:00:58.6]} 23... Ne4
{[%clk 0:00:43.6]} 24. Qxa8 {[%clk 0:00:45.4]} 24... Rxa8 {[%clk 0:00:43.6]} 25.
b5 {[%clk 0:00:43.1]} 25... Nd2 {[%clk 0:00:29.9]} 26. bxc6 {[%clk 0:00:32.5]}
26... bxc6 {[%clk 0:00:29.4]} 27. Rg1 {[%clk 0:00:21.6]} 27... Nb3 {[%clk
0:00:29.6]} 28. Rce1 {[%clk 0:00:20.7]} 28... Re6 {[%clk 0:00:25.9]} 29. Nxd5
{[%clk 0:00:18.5]} 29... cxd5 {[%clk 0:00:24.7]} 30. Bxd5 {[%clk 0:00:19.4]}
30... Rb8 {[%clk 0:00:19.5]} 31. e4 {[%clk 0:00:19.4]} 31... Bh7 {[%clk
0:00:17.8]} 32. f5 {[%clk 0:00:11.7]} 32... Rf6 {[%clk 0:00:10.6]} 33. Rb1
{[%clk 0:00:11.3]} 33... Rfb6 {[%clk 0:00:10.4]} 34. Nxf7 {[%clk 0:00:06.1]}
34... Nxd4 {[%clk 0:00:03.6]} 35. Nxh6+ {[%clk 0:00:06.2]} 35... Kh8 {[%clk
0:00:03.8]} 36. Nf7+ {[%clk 0:00:06.5]} 36... Kg8 {[%clk 0:00:04.5]} 37. Nh6+
{[%clk 0:00:03.1]} 37... Kh8 {[%clk 0:00:05]} 38. Nf7+ {[%clk 0:00:03.4]} 38...
Kg8 {[%clk 0:00:05.6]} 39. Nh6+ {[%clk 0:00:03]} 1/2-1/2

[Event "*** Titled Tuesday Blitz"]
[Site "Chess.com"]
[Date "2020.10.27"]
[Round "3"]
[White "gixfantastix"]
[Black "Sanyura"]
[Result "0-1"]
[WhiteElo "2105"]
[BlackElo "2491"]
[TimeControl "180+1"]
[EndTime "10:28:30 PDT"]
[Termination "Sanyura won on time"]

1. d4 {[%clk 0:03:00.9]} 1... d5 {[%clk 0:02:57.6]} 2. f4 {[%clk 0:02:59.4]}
2... c5 {[%clk 0:02:56]} 3. e3 {[%clk 0:02:58.1]} 3... Nc6 {[%clk 0:02:54.4]} 4.
Nf3 {[%clk 0:02:57.9]} 4... Nf6 {[%clk 0:02:52.8]} 5. Bd3 {[%clk 0:02:46.6]}
5... Bg4 {[%clk 0:02:52.3]} 6. c3 {[%clk 0:02:46.5]} 6... Qb6 {[%clk 0:02:50.2]}
7. O-O {[%clk 0:02:39.8]} 7... g6 {[%clk 0:02:46.3]} 8. Nbd2 {[%clk 0:02:37.8]}
8... Bg7 {[%clk 0:02:45]} 9. Qe1 {[%clk 0:02:31.4]} 9... O-O {[%clk 0:02:43.6]}
10. Qh4 {[%clk 0:02:29.7]} 10... cxd4 {[%clk 0:02:42.2]} 11. exd4 {[%clk
0:02:29]} 11... Rae8 {[%clk 0:02:34.1]} 12. Ne5 {[%clk 0:02:27.7]} 12... Bc8
{[%clk 0:02:24.4]} 13. Ndf3 {[%clk 0:01:47.1]} 13... Ne4 {[%clk 0:02:23.2]} 14.
Ng5 {[%clk 0:01:06.3]} 14... Nxg5 {[%clk 0:02:16.8]} 15. Nxc6 {[%clk 0:01:03.8]}
15... Ne4 {[%clk 0:02:09.1]} 16. Ne5 {[%clk 0:00:59.6]} 16... f6 {[%clk
0:02:08.5]} 17. Nf3 {[%clk 0:00:57.6]} 17... e5 {[%clk 0:01:56.7]} 18. fxe5
{[%clk 0:00:55.3]} 18... fxe5 {[%clk 0:01:57.6]} 19. Bh6 {[%clk 0:00:28.7]}
19... exd4 {[%clk 0:01:53.6]} 20. Bxg7 {[%clk 0:00:19.6]} 20... Kxg7 {[%clk
0:01:52.9]} 21. Nxd4 {[%clk 0:00:15.6]} 21... Qxb2 {[%clk 0:01:50.1]} 22. Rae1
{[%clk 0:00:13.7]} 22... Qxc3 {[%clk 0:01:47.6]} 23. Rxf8 {[%clk 0:00:05.7]}
23... Qxd4+ {[%clk 0:01:46.8]} 24. Rf2 {[%clk 0:00:05.6]} 24... Rf8 {[%clk
0:01:43.4]} 25. Bxe4 {[%clk 0:00:03.3]} 25... dxe4 {[%clk 0:01:43]} 26. Rf1
{[%clk 0:00:01.7]} 26... Rxf2 {[%clk 0:01:24.5]} 27. Qxf2 {[%clk 0:00:01.3]}
27... Qxf2+ {[%clk 0:01:24.5]} 28. Rxf2 {[%clk 0:00:02.2]} 28... Be6 {[%clk
0:01:24.9]} 29. Re2 {[%clk 0:00:02.7]} 29... Bd5 {[%clk 0:01:24.3]} 30. Kf2
{[%clk 0:00:03.1]} 30... Kf6 {[%clk 0:01:24.7]} 31. Ke3 {[%clk 0:00:03.7]} 31...
Ke5 {[%clk 0:01:25.3]} 32. Rb2 {[%clk 0:00:04.2]} 32... b6 {[%clk 0:01:25]} 33.
a3 {[%clk 0:00:04.8]} 33... Bc6 {[%clk 0:01:20.8]} 34. Rf2 {[%clk 0:00:05.7]}
34... Bd5 {[%clk 0:01:20]} 35. Rf8 {[%clk 0:00:05.5]} 35... b5 {[%clk
0:01:13.1]} 36. Re8+ {[%clk 0:00:04.8]} 36... Kd6 {[%clk 0:01:13.2]} 37. Kd4
{[%clk 0:00:04.5]} 37... Bc6 {[%clk 0:01:12.6]} 38. Rh8 {[%clk 0:00:02.8]} 38...
a5 {[%clk 0:01:11.5]} 39. Rxh7 {[%clk 0:00:02.4]} 39... b4 {[%clk 0:01:12]} 40.
axb4 {[%clk 0:00:03.3]} 40... axb4 {[%clk 0:01:12.9]} 41. Rg7 {[%clk 0:00:03]}
41... Be8 {[%clk 0:01:01.7]} 42. Kxe4 {[%clk 0:00:03.4]} 42... b3 {[%clk
0:01:01.4]} 43. Rb7 {[%clk 0:00:03.5]} 43... Bc6+ {[%clk 0:01:00.7]} 44. Kd4
{[%clk 0:00:02]} 44... Bxb7 {[%clk 0:01:01.2]} 45. Kc3 {[%clk 0:00:02.7]} 45...
Bd5 {[%clk 0:01:01.4]} 46. g4 {[%clk 0:00:01.3]} 46... Ke5 {[%clk 0:01:01.4]}
47. h4 {[%clk 0:00:01.7]} 47... Kf4 {[%clk 0:01:00.8]} 48. h5 {[%clk 0:00:01.7]}
48... g5 {[%clk 0:01:01.3]} 49. h6 {[%clk 0:00:01.9]} 49... Bg8 {[%clk
0:01:00.9]} 50. h7 {[%clk 0:00:01.5]} 50... Bxh7 {[%clk 0:01:00.6]} 51. Kxb3
{[%clk 0:00:02.4]} 51... Kxg4 {[%clk 0:01:00.9]} 52. Kc3 {[%clk 0:00:02.2]}
52... Kf3 {[%clk 0:01:01.8]} 53. Kd2 {[%clk 0:00:03.1]} 53... g4 {[%clk
0:01:01.3]} 54. Ke1 {[%clk 0:00:04]} 54... Bd3 {[%clk 0:01:01.7]} 55. Kd2 {[%clk
0:00:03.6]} 55... Ba6 {[%clk 0:01:02.3]} 56. Ke1 {[%clk 0:00:03.6]} 56... g3
{[%clk 0:01:03.2]} 57. Kd2 {[%clk 0:00:04.5]} 57... g2 {[%clk 0:01:02.9]} 0-1

[Event "*** Titled Tuesday Blitz"]
[Site "Chess.com"]
[Date "2020.10.27"]
[Round "3"]
[White "Ural_bogatyr"]
[Black "Yoshikrov"]
[Result "1/2-1/2"]
[WhiteElo "2353"]
[BlackElo "2123"]
[TimeControl "180+1"]
[EndTime "10:28:34 PDT"]
[Termination "Game drawn by repetition"]

1. e4 {[%clk 0:02:21.5]} 1... c5 {[%clk 0:02:58.7]} 2. Nf3 {[%clk 0:02:18.8]}
2... d6 {[%clk 0:02:56.9]} 3. d4 {[%clk 0:02:18.8]} 3... cxd4 {[%clk 0:02:56.8]}
4. Qxd4 {[%clk 0:02:19.7]} 4... Nc6 {[%clk 0:02:56.9]} 5. Bb5 {[%clk 0:02:16.9]}
5... Bd7 {[%clk 0:02:56.3]} 6. Bxc6 {[%clk 0:02:09.6]} 6... Bxc6 {[%clk
0:02:56.2]} 7. Nc3 {[%clk 0:02:09.8]} 7... e6 {[%clk 0:02:54.5]} 8. Bg5 {[%clk
0:02:08.7]} 8... Qc7 {[%clk 0:02:50.3]} 9. O-O-O {[%clk 0:01:58.2]} 9... a6
{[%clk 0:02:50.1]} 10. e5 {[%clk 0:01:46.1]} 10... d5 {[%clk 0:02:42.2]} 11. Nd2
{[%clk 0:01:38.7]} 11... Be7 {[%clk 0:02:41.5]} 12. h4 {[%clk 0:01:36.5]} 12...
h6 {[%clk 0:02:39.5]} 13. Bxe7 {[%clk 0:01:32.2]} 13... Nxe7 {[%clk 0:02:38.6]}
14. g4 {[%clk 0:01:33.1]} 14... b5 {[%clk 0:02:34]} 15. f4 {[%clk 0:01:27.3]}
15... Bd7 {[%clk 0:02:29.6]} 16. f5 {[%clk 0:01:18]} 16... Nc6 {[%clk
0:02:27.9]} 17. Qc5 {[%clk 0:01:18]} 17... Rc8 {[%clk 0:02:15.3]} 18. Rhe1
{[%clk 0:01:08.8]} 18... Ne7 {[%clk 0:02:02.1]} 19. Qd4 {[%clk 0:00:58.4]} 19...
Qc5 {[%clk 0:01:58.6]} 20. Nb3 {[%clk 0:00:54.9]} 20... Qxd4 {[%clk 0:01:56.4]}
21. Nxd4 {[%clk 0:00:55.8]} 21... Nc6 {[%clk 0:01:53.4]} 22. Nce2 {[%clk
0:00:53.8]} 22... Nxd4 {[%clk 0:01:23.6]} 23. Nxd4 {[%clk 0:00:54.7]} 23... Ke7
{[%clk 0:01:21.9]} 24. Rf1 {[%clk 0:00:49.1]} 24... Rhg8 {[%clk 0:00:52.6]} 25.
Rf4 {[%clk 0:00:43.3]} 25... g6 {[%clk 0:00:44.4]} 26. Rdf1 {[%clk 0:00:37.1]}
26... gxf5 {[%clk 0:00:43.4]} 27. gxf5 {[%clk 0:00:36]} 27... exf5 {[%clk
0:00:43.8]} 28. Nxf5+ {[%clk 0:00:35.7]} 28... Bxf5 {[%clk 0:00:44]} 29. Rxf5
{[%clk 0:00:36.6]} 29... Rg7 {[%clk 0:00:43.3]} 30. Rf6 {[%clk 0:00:35.8]} 30...
h5 {[%clk 0:00:31.9]} 31. Rxa6 {[%clk 0:00:34.8]} 31... Rg2 {[%clk 0:00:29.4]}
32. c3 {[%clk 0:00:30.3]} 32... b4 {[%clk 0:00:29.9]} 33. Ra7+ {[%clk
0:00:22.2]} 33... Ke6 {[%clk 0:00:30]} 34. Rfxf7 {[%clk 0:00:22.2]} 34... Kxe5
{[%clk 0:00:25.6]} 35. Rh7 {[%clk 0:00:16.5]} 35... bxc3 {[%clk 0:00:24.4]} 36.
Rxh5+ {[%clk 0:00:16.4]} 36... Ke4 {[%clk 0:00:21.1]} 37. bxc3 {[%clk
0:00:16.3]} 37... Rxc3+ {[%clk 0:00:20.4]} 38. Kb1 {[%clk 0:00:16.7]} 38... Rh3
{[%clk 0:00:16.6]} 39. Re7+ {[%clk 0:00:16.1]} 39... Kd4 {[%clk 0:00:16.6]} 40.
Re1 {[%clk 0:00:16.1]} 40... Rhh2 {[%clk 0:00:14.9]} 41. Rd1+ {[%clk 0:00:16.3]}
41... Kc4 {[%clk 0:00:14.1]} 42. Rhxd5 {[%clk 0:00:07.3]} 42... Rb2+ {[%clk
0:00:13.5]} 43. Ka1 {[%clk 0:00:07.6]} 43... Rxa2+ {[%clk 0:00:14]} 44. Kb1
{[%clk 0:00:08]} 44... Rhb2+ {[%clk 0:00:14.6]} 45. Kc1 {[%clk 0:00:08.3]} 45...
Rc2+ {[%clk 0:00:15.2]} 46. Kb1 {[%clk 0:00:08.9]} 46... Rcb2+ {[%clk
0:00:15.8]} 47. Kc1 {[%clk 0:00:09]} 47... Rc2+ {[%clk 0:00:16.4]} 48. Kb1
{[%clk 0:00:09.6]} 48... Rcb2+ {[%clk 0:00:17]} 1/2-1/2

[Event "*** Titled Tuesday Blitz"]
[Site "Chess.com"]
[Date "2020.10.27"]
[Round "3"]
[White "sara_khm"]
[Black "TigrVShlyape"]
[Result "0-1"]
[WhiteElo "2587"]
[BlackElo "2871"]
[TimeControl "180+1"]
[EndTime "10:28:35 PDT"]
[Termination "TigrVShlyape won by resignation"]

1. d4 {[%clk 0:03:00.9]} 1... Nf6 {[%clk 0:02:56.6]} 2. c4 {[%clk 0:03:00.2]}
2... g6 {[%clk 0:02:53.6]} 3. g3 {[%clk 0:03:00.1]} 3... Bg7 {[%clk 0:02:52.8]}
4. Bg2 {[%clk 0:02:59.9]} 4... d6 {[%clk 0:02:52.7]} 5. Nc3 {[%clk 0:02:59.1]}
5... O-O {[%clk 0:02:51.1]} 6. Nf3 {[%clk 0:02:59.3]} 6... Nc6 {[%clk
0:02:49.9]} 7. O-O {[%clk 0:02:59.2]} 7... a5 {[%clk 0:02:49.5]} 8. d5 {[%clk
0:02:53.6]} 8... Nb8 {[%clk 0:02:46.8]} 9. Nd4 {[%clk 0:02:51]} 9... Na6 {[%clk
0:02:42.6]} 10. e4 {[%clk 0:02:46.5]} 10... e5 {[%clk 0:02:40.4]} 11. dxe6
{[%clk 0:02:43.2]} 11... fxe6 {[%clk 0:02:39.8]} 12. e5 {[%clk 0:02:38.4]} 12...
dxe5 {[%clk 0:02:12]} 13. Nf3 {[%clk 0:02:38.1]} 13... e4 {[%clk 0:02:09.4]} 14.
Ng5 {[%clk 0:02:35.6]} 14... Nc5 {[%clk 0:02:08.6]} 15. Ncxe4 {[%clk 0:02:07.4]}
15... Nfxe4 {[%clk 0:02:05.7]} 16. Nxe4 {[%clk 0:02:07.1]} 16... Nd3 {[%clk
0:01:46.9]} 17. Qe2 {[%clk 0:02:02.1]} 17... Nxc1 {[%clk 0:01:45.7]} 18. Raxc1
{[%clk 0:02:00.5]} 18... Bd4 {[%clk 0:01:36.9]} 19. c5 {[%clk 0:01:24.8]} 19...
e5 {[%clk 0:01:35.8]} 20. h4 {[%clk 0:01:20.7]} 20... h6 {[%clk 0:01:34.2]} 21.
Qc4+ {[%clk 0:01:14.2]} 21... Kg7 {[%clk 0:01:33.6]} 22. c6 {[%clk 0:01:12.3]}
22... b6 {[%clk 0:01:30.8]} 23. Rfd1 {[%clk 0:01:11.7]} 23... Bg4 {[%clk
0:01:26.5]} 24. Rd2 {[%clk 0:01:11]} 24... Qe7 {[%clk 0:01:23.7]} 25. Kh2 {[%clk
0:01:06.4]} 25... Be6 {[%clk 0:01:22.9]} 26. Qc2 {[%clk 0:01:03.8]} 26... Rad8
{[%clk 0:01:22.3]} 27. Re1 {[%clk 0:01:02.8]} 27... g5 {[%clk 0:01:19.9]} 28.
hxg5 {[%clk 0:00:55.3]} 28... hxg5 {[%clk 0:01:19.2]} 29. Nc3 {[%clk 0:00:55.5]}
29... Qf6 {[%clk 0:01:10.4]} 30. Kg1 {[%clk 0:00:52.2]} 30... Bf5 {[%clk
0:00:58]} 31. Be4 {[%clk 0:00:48.4]} 31... Bg4 {[%clk 0:00:50.7]} 32. Nb5 {[%clk
0:00:44.2]} 32... Rh8 {[%clk 0:00:42.6]} 33. Nxd4 {[%clk 0:00:44]} 33... exd4
{[%clk 0:00:42.1]} 34. Bg2 {[%clk 0:00:43.2]} 34... Bf5 {[%clk 0:00:40.1]} 35.
Qc4 {[%clk 0:00:38.4]} 35... d3 {[%clk 0:00:37]} 36. Qb5 {[%clk 0:00:34.6]}
36... Rhe8 {[%clk 0:00:34.5]} 37. Rc1 {[%clk 0:00:31.9]} 37... Qe5 {[%clk
0:00:31.6]} 38. Qxe5+ {[%clk 0:00:22.8]} 38... Rxe5 {[%clk 0:00:30.9]} 39. Bf1
{[%clk 0:00:20.5]} 39... Kf6 {[%clk 0:00:27.3]} 40. f3 {[%clk 0:00:20.9]} 40...
g4 {[%clk 0:00:23.6]} 41. fxg4 {[%clk 0:00:20.2]} 41... Bg6 {[%clk 0:00:22.9]}
42. Kf2 {[%clk 0:00:20.2]} 42... Kg5 {[%clk 0:00:22.8]} 43. Rc3 {[%clk
0:00:19.7]} 43... Rf8+ {[%clk 0:00:22.8]} 44. Kg2 {[%clk 0:00:18.1]} 44... Be4+
{[%clk 0:00:21]} 45. Kg1 {[%clk 0:00:18.6]} 45... Rf3 {[%clk 0:00:19.9]} 46. Bg2
{[%clk 0:00:17.3]} 46... Rxg3 {[%clk 0:00:19.6]} 47. Kh2 {[%clk 0:00:17.8]}
47... Rxg2+ {[%clk 0:00:19.5]} 48. Rxg2 {[%clk 0:00:18]} 48... Bxg2 {[%clk
0:00:20.3]} 49. Kxg2 {[%clk 0:00:17.8]} 49... Rd5 {[%clk 0:00:20.6]} 50. Rc1
{[%clk 0:00:17.7]} 50... Kxg4 {[%clk 0:00:21]} 51. Kf2 {[%clk 0:00:18.1]} 51...
Kf4 {[%clk 0:00:21.5]} 52. Ke1 {[%clk 0:00:18.5]} 52... d2+ {[%clk 0:00:21.7]}
0-1

[Event "*** Titled Tuesday Blitz"]
[Site "Chess.com"]
[Date "2020.10.27"]
[Round "3"]
[White "Beca95"]
[Black "mbojan"]
[Result "1/2-1/2"]
[WhiteElo "2917"]
[BlackElo "2714"]
[TimeControl "180+1"]
[EndTime "10:28:36 PDT"]
[Termination "Game drawn - insufficient material"]

1. b3 {[%clk 0:03:00.9]} 1... Nf6 {[%clk 0:02:59.7]} 2. Bb2 {[%clk 0:03:00]}
2... g6 {[%clk 0:03:00.2]} 3. c4 {[%clk 0:02:59.7]} 3... Bg7 {[%clk 0:03:00.3]}
4. g3 {[%clk 0:03:00.2]} 4... O-O {[%clk 0:03:00.7]} 5. Bg2 {[%clk 0:03:00.7]}
5... c6 {[%clk 0:03:00.7]} 6. Nf3 {[%clk 0:03:00.2]} 6... d5 {[%clk 0:03:01]} 7.
d3 {[%clk 0:03:00.7]} 7... Bg4 {[%clk 0:03:00.8]} 8. Nbd2 {[%clk 0:03:00.3]}
8... Nbd7 {[%clk 0:03:00]} 9. O-O {[%clk 0:03:00.2]} 9... Bxf3 {[%clk
0:02:59.2]} 10. Nxf3 {[%clk 0:03:01.1]} 10... e6 {[%clk 0:02:59.4]} 11. Qc2
{[%clk 0:03:00.8]} 11... Re8 {[%clk 0:02:58.1]} 12. d4 {[%clk 0:02:59.6]} 12...
b5 {[%clk 0:02:53.6]} 13. e3 {[%clk 0:02:55.4]} 13... Rb8 {[%clk 0:02:51.7]} 14.
Rab1 {[%clk 0:02:28.7]} 14... bxc4 {[%clk 0:02:38.9]} 15. bxc4 {[%clk
0:02:29.6]} 15... Qa5 {[%clk 0:02:37.3]} 16. a3 {[%clk 0:02:28.6]} 16... Ne4
{[%clk 0:02:26.9]} 17. Rfc1 {[%clk 0:02:23.5]} 17... Nb6 {[%clk 0:02:21.6]} 18.
Bf1 {[%clk 0:02:19.8]} 18... Qa4 {[%clk 0:01:54.8]} 19. Qxa4 {[%clk 0:02:11.9]}
19... Nxa4 {[%clk 0:01:55.7]} 20. Ba1 {[%clk 0:02:12.4]} 20... Nb6 {[%clk
0:01:32.2]} 21. c5 {[%clk 0:02:11.4]} 21... Nd7 {[%clk 0:01:30.6]} 22. Ba6
{[%clk 0:02:10.3]} 22... Rxb1 {[%clk 0:01:01.5]} 23. Rxb1 {[%clk 0:02:11.2]}
23... Rb8 {[%clk 0:01:01.8]} 24. Rc1 {[%clk 0:01:52]} 24... Kf8 {[%clk
0:00:42.5]} 25. Ne1 {[%clk 0:01:50.5]} 25... Rb3 {[%clk 0:00:38.2]} 26. Nc2
{[%clk 0:01:50]} 26... e5 {[%clk 0:00:28.7]} 27. Bc8 {[%clk 0:01:37.3]} 27...
Ke7 {[%clk 0:00:21.7]} 28. Bxd7 {[%clk 0:01:37.1]} 28... Kxd7 {[%clk 0:00:22.6]}
29. dxe5 {[%clk 0:01:37.6]} 29... Bf8 {[%clk 0:00:21.5]} 30. Nd4 {[%clk
0:01:35.8]} 30... Rxa3 {[%clk 0:00:21.5]} 31. Rb1 {[%clk 0:01:36.2]} 31... Bxc5
{[%clk 0:00:15.7]} 32. Bb2 {[%clk 0:01:32.2]} 32... Ra6 {[%clk 0:00:13.7]} 33.
Rc1 {[%clk 0:01:22.3]} 33... Rb6 {[%clk 0:00:13.2]} 34. Ba1 {[%clk 0:01:22.6]}
34... Ba3 {[%clk 0:00:10.9]} 35. Rd1 {[%clk 0:01:17.7]} 35... Bb2 {[%clk
0:00:09.5]} 36. Bxb2 {[%clk 0:01:17.3]} 36... Rxb2 {[%clk 0:00:10.4]} 37. Ra1
{[%clk 0:01:17.5]} 37... Nxf2 {[%clk 0:00:07.2]} 38. Rxa7+ {[%clk 0:01:16.5]}
38... Kc8 {[%clk 0:00:07.2]} 39. Rxf7 {[%clk 0:01:13.3]} 39... Ng4 {[%clk
0:00:06.8]} 40. e6 {[%clk 0:01:10.6]} 40... Rb1+ {[%clk 0:00:05.4]} 41. Kg2
{[%clk 0:01:10.3]} 41... Nxe3+ {[%clk 0:00:06.1]} 42. Kf3 {[%clk 0:01:09.1]}
42... Re1 {[%clk 0:00:04]} 43. Rf8+ {[%clk 0:01:03.3]} 43... Kc7 {[%clk
0:00:04.6]} 44. e7 {[%clk 0:01:03.7]} 44... Nc2 {[%clk 0:00:04.3]} 45. Nxc2
{[%clk 0:00:53.4]} 45... Rxe7 {[%clk 0:00:04.9]} 46. Rf6 {[%clk 0:00:53.6]}
46... c5 {[%clk 0:00:03.6]} 47. Ne3 {[%clk 0:00:53.7]} 47... Rd7 {[%clk
0:00:04.2]} 48. Ke2 {[%clk 0:00:52.9]} 48... Rd6 {[%clk 0:00:04.1]} 49. Rf7+
{[%clk 0:00:51.3]} 49... Kc6 {[%clk 0:00:04.4]} 50. Rxh7 {[%clk 0:00:51.6]}
50... Re6 {[%clk 0:00:04.8]} 51. Kd2 {[%clk 0:00:50.2]} 51... c4 {[%clk
0:00:03.5]} 52. Nc2 {[%clk 0:00:48.8]} 52... Kc5 {[%clk 0:00:03.8]} 53. Rh4
{[%clk 0:00:48.8]} 53... Rf6 {[%clk 0:00:02.8]} 54. Rf4 {[%clk 0:00:48.4]} 54...
Rxf4 {[%clk 0:00:02.7]} 55. gxf4 {[%clk 0:00:49.3]} 55... d4 {[%clk 0:00:03.4]}
56. h4 {[%clk 0:00:49.6]} 56... Kd5 {[%clk 0:00:03.9]} 57. f5 {[%clk 0:00:50]}
57... gxf5 {[%clk 0:00:04.4]} 58. h5 {[%clk 0:00:50.6]} 58... Ke5 {[%clk
0:00:04.2]} 59. Nxd4 {[%clk 0:00:51.2]} 59... Kf6 {[%clk 0:00:04.8]} 60. Nf3
{[%clk 0:00:50.8]} 60... Kg7 {[%clk 0:00:04.3]} 61. Nh4 {[%clk 0:00:46.8]} 61...
Kh6 {[%clk 0:00:04.5]} 62. Nxf5+ {[%clk 0:00:47.7]} 62... Kxh5 {[%clk
0:00:05.1]} 63. Nd6 {[%clk 0:00:48.6]} 63... Kg4 {[%clk 0:00:05.7]} 64. Kc3
{[%clk 0:00:48.9]} 64... Kh3 {[%clk 0:00:06]} 65. Kxc4 {[%clk 0:00:49.8]}
1/2-1/2